[Event "Titled Tuesday Blitz July 4 Late 2023"]
[White "Mindhunter08"]
[Black "Fisher_TheGalactic"]
[WhiteElo "2436"]
[BlackElo "2668"]
[Result "0-1"]
[Round "10"]
[TimeControl "180+2"]
[Date "2023.07.04"]
[WhiteClock "0:00:07"]
[BlackClock "0:00:08"]
[Board "31"]

1. e4 {[%clk 0:03:00]}  b6 {[%clk 0:02:58]} 2. d4 {[%clk 0:03:00]}  Bb7 {[%clk 0:02:58]} 3. Bd3 {[%clk 0:03:00]}  Nf6 {[%clk 0:02:58]} 4. Nd2 {[%clk 0:02:53]}  e6 {[%clk 0:02:58]} 5. Ngf3 {[%clk 0:02:53]}  d5 {[%clk 0:02:58]} 6. e5 {[%clk 0:02:52]}  Nfd7 {[%clk 0:02:58]} 7. O-O {[%clk 0:02:52]}  c5 {[%clk 0:02:58]} 8. c3 {[%clk 0:02:53]}  Nc6 {[%clk 0:02:58]} 9. Re1 {[%clk 0:02:52]}  Be7 {[%clk 0:02:59]} 10. Nf1 {[%clk 0:02:49]}  Qc7 {[%clk 0:02:59]} 11. Be3 {[%clk 0:02:50]}  c4 {[%clk 0:02:58]} 12. Bc2 {[%clk 0:02:48]}  h6 {[%clk 0:02:59]} 13. Ng3 {[%clk 0:02:48]}  O-O-O {[%clk 0:02:58]} 14. a4 {[%clk 0:02:47]}  Kb8 {[%clk 0:02:57]} 15. Nd2 {[%clk 0:02:33]}  g6 {[%clk 0:02:53]} 16. b3 {[%clk 0:02:30]}  cxb3 {[%clk 0:02:49]} 17. Nxb3 {[%clk 0:02:31]}  Rc8 {[%clk 0:02:44]} 18. Bd3 {[%clk 0:02:29]}  a6 {[%clk 0:02:39]} 19. Qe2 {[%clk 0:02:27]}  Ka7 {[%clk 0:02:40]} 20. Rab1 {[%clk 0:02:25]}  Ncb8 {[%clk 0:02:36]} 21. Rec1 {[%clk 0:02:25]}  Bc6 {[%clk 0:02:34]} 22. c4 {[%clk 0:02:21]}  dxc4 {[%clk 0:02:25]} 23. Bxc4 {[%clk 0:02:13]}  Qb7 {[%clk 0:02:16]} 24. f3 {[%clk 0:01:55]}  Bd5 {[%clk 0:02:08]} 25. Bd3 {[%clk 0:01:19]}  Ba3 {[%clk 0:01:55]} 26. Nc5 {[%clk 0:01:06]}  Nxc5 {[%clk 0:01:48]} 27. Rxc5 {[%clk 0:01:05]}  Nd7 {[%clk 0:00:55]} 28. Ne4 {[%clk 0:01:05]}  Nxc5 {[%clk 0:00:46]} 29. dxc5 {[%clk 0:01:00]}  Rc6 {[%clk 0:00:36]} 30. Nd6 {[%clk 0:00:54]}  Bxc5 {[%clk 0:00:06]} 31. Nxb7 {[%clk 0:00:52]}  Bxe3+ {[%clk 0:00:06]} 32. Qxe3 {[%clk 0:00:52]}  Kxb7 {[%clk 0:00:07]} 33. Be4 {[%clk 0:00:38]}  Bxe4 {[%clk 0:00:04]} 34. Qxe4 {[%clk 0:00:37]}  Rd8 {[%clk 0:00:05]} 35. Rc1 {[%clk 0:00:34]}  Rd5 {[%clk 0:00:05]} 36. Rxc6 {[%clk 0:00:32]}  Kxc6 {[%clk 0:00:06]} 37. Qf4 {[%clk 0:00:30]}  Rd7 {[%clk 0:00:06]} 38. Qxh6 {[%clk 0:00:29]}  b5 {[%clk 0:00:06]} 39. axb5+ {[%clk 0:00:29]}  axb5 {[%clk 0:00:07]} 40. Qc1+ {[%clk 0:00:29]}  Kb6 {[%clk 0:00:07]} 41. Qe3+ {[%clk 0:00:29]}  Ka5 {[%clk 0:00:06]} 42. Qa3+ {[%clk 0:00:29]}  Kb6 {[%clk 0:00:06]} 43. Qb4 {[%clk 0:00:28]}  Rd5 {[%clk 0:00:02]} 44. h4 {[%clk 0:00:25]}  Kc6 {[%clk 0:00:01]} 45. f4 {[%clk 0:00:18]}  Rc5 {[%clk 0:00:01]} 46. Qa5 {[%clk 0:00:16]}  Rc4 {[%clk 0:00:01]} 47. Qd8 {[%clk 0:00:13]}  Kc5 {[%clk 0:00:02]} 48. Qc7+ {[%clk 0:00:13]}  Kd4 {[%clk 0:00:02]} 49. Qxf7 {[%clk 0:00:13]}  b4 {[%clk 0:00:02]} 50. Qxg6 {[%clk 0:00:14]}  b3 {[%clk 0:00:03]} 51. h5 {[%clk 0:00:14]}  b2 {[%clk 0:00:03]} 52. Kh2 {[%clk 0:00:07]}  Rc1 {[%clk 0:00:04]} 53. Qxe6 {[%clk 0:00:03]}  b1=Q {[%clk 0:00:05]} 54. Qd6+ {[%clk 0:00:03]}  Ke3 {[%clk 0:00:05]} 55. h6 {[%clk 0:00:04]}  Rh1+ {[%clk 0:00:05]} 56. Kg3 {[%clk 0:00:05]}  Qe1+ {[%clk 0:00:05]} 57. Kg4 {[%clk 0:00:06]}  Qh4+ {[%clk 0:00:05]} 58. Kf5 {[%clk 0:00:06]}  Qxf4+ {[%clk 0:00:06]} 59. Ke6 {[%clk 0:00:07]}  Rxh6+ {[%clk 0:00:07]} 60. Kd5 {[%clk 0:00:07]}  Rxd6+ {[%clk 0:00:07]} 61. exd6 {[%clk 0:00:08]}  Qf8 {[%clk 0:00:07]} 62. g4 {[%clk 0:00:07]}  Kf4 {[%clk 0:00:07]} 63. Kc6 {[%clk 0:00:07]}  Qd8 {[%clk 0:00:07]} 64. d7 {[%clk 0:00:07]}  Kxg4 {[%clk 0:00:07]} 65. Kd6 {[%clk 0:00:08]}  Kf5 {[%clk 0:00:08]} 66. Kc6 {[%clk 0:00:07]}  Ke6 {[%clk 0:00:08]} 0-1


[Site "https://www.chess.com"]

[Event "Titled Tuesday Blitz July 4 Late 2023"]
[White "Vdovin, Vadim"]
[Black "Stribuk, Artiom"]
[WhiteFideId "24107158"]
[BlackFideId "13515659"]
[WhiteElo "2596"]
[BlackElo "2786"]
[Result "0-1"]
[Round "10"]
[TimeControl "180+2"]
[Date "2023.07.04"]
[WhiteClock "0:00:00"]
[BlackClock "0:00:02"]
[Board "32"]

1. e4 {[%clk 0:02:55]}  c5 {[%clk 0:02:59]} 2. Nf3 {[%clk 0:02:55]}  d6 {[%clk 0:02:59]} 3. d4 {[%clk 0:02:55]}  cxd4 {[%clk 0:03:00]} 4. Nxd4 {[%clk 0:02:56]}  Nf6 {[%clk 0:03:01]} 5. Nc3 {[%clk 0:02:57]}  Nc6 {[%clk 0:03:01]} 6. f3 {[%clk 0:02:56]}  e5 {[%clk 0:02:57]} 7. Nb3 {[%clk 0:02:52]}  Be7 {[%clk 0:02:56]} 8. Be3 {[%clk 0:02:52]}  O-O {[%clk 0:02:55]} 9. Qd2 {[%clk 0:02:52]}  Be6 {[%clk 0:02:51]} 10. O-O-O {[%clk 0:02:51]}  a5 {[%clk 0:02:52]} 11. Bb5 {[%clk 0:02:51]}  Nb4 {[%clk 0:02:44]} 12. Kb1 {[%clk 0:02:46]}  Qc7 {[%clk 0:02:34]} 13. a3 {[%clk 0:02:42]}  d5 {[%clk 0:02:15]} 14. axb4 {[%clk 0:02:20]}  d4 {[%clk 0:02:14]} 15. bxa5 {[%clk 0:01:23]}  dxe3 {[%clk 0:02:11]} 16. Qxe3 {[%clk 0:01:21]}  Rxa5 {[%clk 0:01:58]} 17. Nxa5 {[%clk 0:01:13]}  Qxa5 {[%clk 0:01:59]} 18. Nd5 {[%clk 0:00:42]}  Bxd5 {[%clk 0:01:47]} 19. exd5 {[%clk 0:00:42]}  Ra8 {[%clk 0:01:47]} 20. c4 {[%clk 0:00:37]}  Bd6 {[%clk 0:01:09]} 21. Qb3 {[%clk 0:00:27]}  e4 {[%clk 0:01:07]} 22. c5 {[%clk 0:00:24]}  Bxc5 {[%clk 0:00:59]} 23. d6 {[%clk 0:00:23]}  e3 {[%clk 0:00:57]} 24. d7 {[%clk 0:00:21]}  Rd8 {[%clk 0:00:56]} 25. Bc4 {[%clk 0:00:09]}  Kf8 {[%clk 0:00:45]} 26. Bxf7 {[%clk 0:00:08]}  e2 {[%clk 0:00:41]} 27. Rc1 {[%clk 0:00:08]}  Rxd7 {[%clk 0:00:39]} 28. Bc4 {[%clk 0:00:08]}  Rd2 {[%clk 0:00:26]} 29. Qc3 {[%clk 0:00:08]}  Bb4 {[%clk 0:00:17]} 30. Qb3 {[%clk 0:00:06]}  Bd6 {[%clk 0:00:12]} 31. Rhe1 {[%clk 0:00:04]}  Be5 {[%clk 0:00:12]} 32. Rxe2 {[%clk 0:00:04]}  Rxe2 {[%clk 0:00:02]} 33. Bxe2 {[%clk 0:00:04]}  Qd2 {[%clk 0:00:03]} 34. Qc2 {[%clk 0:00:03]}  Qe3 {[%clk 0:00:03]} 35. Qc8+ {[%clk 0:00:03]}  Ne8 {[%clk 0:00:02]} 36. Qc2 {[%clk 0:00:02]}  Nd6 {[%clk 0:00:02]} 37. Bc4 {[%clk 0:00:02]}  Qb6 {[%clk 0:00:02]} 38. Bd5 {[%clk 0:00:02]}  g6 {[%clk 0:00:02]} 39. Re1 {[%clk 0:00:01]}  Bf6 {[%clk 0:00:02]} 40. Qb3 {[%clk 0:00:00]}  Qd4 {[%clk 0:00:02]} 0-1


[Site "https://www.chess.com"]

[Event "Titled Tuesday Blitz July 4 Late 2023"]
[White "Erenberg, Ariel"]
[Black "Rodriguez, Santiago"]
[WhiteFideId "2811634"]
[BlackFideId "3000591"]
[WhiteElo "2711"]
[BlackElo "2546"]
[Result "1-0"]
[Round "10"]
[TimeControl "180+2"]
[Date "2023.07.04"]
[WhiteClock "0:00:28"]
[BlackClock "0:00:00"]
[Board "37"]

1. b3 {[%clk 0:03:00]}  Nf6 {[%clk 0:02:59]} 2. Bb2 {[%clk 0:03:01]}  g6 {[%clk 0:02:59]} 3. Nf3 {[%clk 0:03:01]}  Bg7 {[%clk 0:02:59]} 4. g3 {[%clk 0:03:01]}  O-O {[%clk 0:02:59]} 5. Bg2 {[%clk 0:03:02]}  c6 {[%clk 0:03:00]} 6. O-O {[%clk 0:03:01]}  d5 {[%clk 0:03:00]} 7. c4 {[%clk 0:02:57]}  Bg4 {[%clk 0:02:57]} 8. d3 {[%clk 0:02:51]}  Nbd7 {[%clk 0:02:55]} 9. Nbd2 {[%clk 0:02:48]}  Re8 {[%clk 0:02:55]} 10. h3 {[%clk 0:02:44]}  Bxf3 {[%clk 0:02:54]} 11. Nxf3 {[%clk 0:02:45]}  e5 {[%clk 0:02:52]} 12. Rc1 {[%clk 0:02:41]}  e4 {[%clk 0:02:48]} 13. Nd4 {[%clk 0:02:40]}  Ne5 {[%clk 0:02:33]} 14. cxd5 {[%clk 0:02:32]}  cxd5 {[%clk 0:02:29]} 15. Qd2 {[%clk 0:02:19]}  Qb6 {[%clk 0:02:06]} 16. Rc2 {[%clk 0:02:10]}  h5 {[%clk 0:02:03]} 17. Rfc1 {[%clk 0:02:07]}  h4 {[%clk 0:01:56]} 18. g4 {[%clk 0:02:05]}  Qd6 {[%clk 0:01:49]} 19. Nb5 {[%clk 0:02:04]}  Qb6 {[%clk 0:01:28]} 20. Nc7 {[%clk 0:02:03]}  Nexg4 {[%clk 0:01:11]} 21. hxg4 {[%clk 0:02:02]}  Nxg4 {[%clk 0:01:11]} 22. e3 {[%clk 0:02:00]}  Qd6 {[%clk 0:01:04]} 23. Nxe8 {[%clk 0:01:57]}  Qh2+ {[%clk 0:01:03]} 24. Kf1 {[%clk 0:01:53]}  h3 {[%clk 0:01:03]} 25. Bxe4 {[%clk 0:01:19]}  dxe4 {[%clk 0:00:57]} 26. dxe4 {[%clk 0:01:20]}  Qg2+ {[%clk 0:00:48]} 27. Ke2 {[%clk 0:01:19]}  Qxf2+ {[%clk 0:00:36]} 28. Kd3 {[%clk 0:01:19]}  Rd8+ {[%clk 0:00:35]} 29. Bd4 {[%clk 0:01:19]}  Bxd4 {[%clk 0:00:16]} 30. Qxf2 {[%clk 0:01:11]}  Bxe3+ {[%clk 0:00:05]} 31. Ke2 {[%clk 0:01:03]}  Bxf2 {[%clk 0:00:05]} 32. Kf3 {[%clk 0:00:29]}  Rxe8 {[%clk 0:00:03]} 33. Kxg4 {[%clk 0:00:28]}  Be3 {[%clk 0:00:00]} 34. Re1 {[%clk 0:00:28]} 1-0


[Site "https://www.chess.com"]

[Event "Titled Tuesday Blitz July 4 Late 2023"]
[White "Shapiro, Viktor"]
[Black "Stoleriu, George"]
[WhiteFideId "4175700"]
[BlackFideId "1227505"]
[WhiteElo "2489"]
[BlackElo "2669"]
[Result "0-1"]
[Round "10"]
[TimeControl "180+2"]
[Date "2023.07.04"]
[WhiteClock "0:00:34"]
[BlackClock "0:00:33"]
[Board "40"]

1. Nf3 {[%clk 0:03:00]}  Nf6 {[%clk 0:02:54]} 2. g3 {[%clk 0:03:00]}  e6 {[%clk 0:02:55]} 3. Bg2 {[%clk 0:03:01]}  b6 {[%clk 0:02:55]} 4. O-O {[%clk 0:03:01]}  Bb7 {[%clk 0:02:55]} 5. d3 {[%clk 0:03:02]}  c5 {[%clk 0:02:56]} 6. c4 {[%clk 0:03:03]}  g6 {[%clk 0:02:56]} 7. Nc3 {[%clk 0:03:02]}  Bg7 {[%clk 0:02:57]} 8. a3 {[%clk 0:03:03]}  O-O {[%clk 0:02:57]} 9. Rb1 {[%clk 0:03:04]}  Nc6 {[%clk 0:02:58]} 10. b4 {[%clk 0:03:04]}  cxb4 {[%clk 0:02:57]} 11. axb4 {[%clk 0:03:04]}  d5 {[%clk 0:02:57]} 12. c5 {[%clk 0:02:57]}  d4 {[%clk 0:02:48]} 13. Nb5 {[%clk 0:02:52]}  Nd5 {[%clk 0:02:44]} 14. Bd2 {[%clk 0:02:40]}  bxc5 {[%clk 0:02:11]} 15. bxc5 {[%clk 0:02:39]}  Ba6 {[%clk 0:02:10]} 16. Qa4 {[%clk 0:02:38]}  Bxb5 {[%clk 0:02:07]} 17. Qxb5 {[%clk 0:02:37]}  Qc7 {[%clk 0:02:04]} 18. e3 {[%clk 0:02:20]}  Rfb8 {[%clk 0:02:00]} 19. Qc4 {[%clk 0:02:20]}  dxe3 {[%clk 0:01:52]} 20. fxe3 {[%clk 0:02:20]}  a5 {[%clk 0:01:52]} 21. d4 {[%clk 0:02:20]}  Ndb4 {[%clk 0:01:44]} 22. Ng5 {[%clk 0:02:13]}  Rf8 {[%clk 0:01:42]} 23. Ne4 {[%clk 0:01:49]}  Rad8 {[%clk 0:01:36]} 24. Nd6 {[%clk 0:01:48]}  Nxd4 {[%clk 0:01:19]} 25. exd4 {[%clk 0:01:34]}  Rxd6 {[%clk 0:01:18]} 26. Bf4 {[%clk 0:01:33]}  Rxd4 {[%clk 0:01:14]} 27. Qxb4 {[%clk 0:01:24]}  Qxf4 {[%clk 0:01:14]} 28. Rxf4 {[%clk 0:01:21]}  axb4 {[%clk 0:01:06]} 29. Rxb4 {[%clk 0:01:20]}  Rd1+ {[%clk 0:01:00]} 30. Rf1 {[%clk 0:01:16]}  Bd4+ {[%clk 0:00:59]} 31. Kh1 {[%clk 0:01:16]}  Rxf1+ {[%clk 0:01:00]} 32. Bxf1 {[%clk 0:01:17]}  Bxc5 {[%clk 0:01:00]} 33. Rc4 {[%clk 0:01:17]}  Be7 {[%clk 0:01:01]} 34. Rc7 {[%clk 0:01:17]}  Bf6 {[%clk 0:01:00]} 35. Bc4 {[%clk 0:01:17]}  Re8 {[%clk 0:01:00]} 36. Kg2 {[%clk 0:01:17]}  Re7 {[%clk 0:01:01]} 37. Rc6 {[%clk 0:01:16]}  Kg7 {[%clk 0:01:01]} 38. h4 {[%clk 0:01:17]}  Rd7 {[%clk 0:00:57]} 39. Kf3 {[%clk 0:01:16]}  h5 {[%clk 0:00:56]} 40. Ke2 {[%clk 0:01:12]}  Be5 {[%clk 0:00:56]} 41. Kf3 {[%clk 0:01:11]}  Ra7 {[%clk 0:00:56]} 42. Rb6 {[%clk 0:00:55]}  Ra4 {[%clk 0:00:53]} 43. Bb3 {[%clk 0:00:43]}  Rg4 {[%clk 0:00:52]} 44. Rb7 {[%clk 0:00:43]}  Rxg3+ {[%clk 0:00:52]} 45. Kf2 {[%clk 0:00:44]}  Kf6 {[%clk 0:00:51]} 46. Ba4 {[%clk 0:00:43]}  Rc3 {[%clk 0:00:47]} 47. Be8 {[%clk 0:00:43]}  Rc7 {[%clk 0:00:48]} 48. Rb5 {[%clk 0:00:41]}  Rc8 {[%clk 0:00:45]} 49. Bd7 {[%clk 0:00:40]}  Rb8 {[%clk 0:00:36]} 50. Ra5 {[%clk 0:00:34]}  Rb4 {[%clk 0:00:33]} 0-1


[Site "https://www.chess.com"]

[Event "Titled Tuesday Blitz July 4 Late 2023"]
[White "Di Berardino, Diego Rafael"]
[Black "Philippe, Guillaume"]
[WhiteFideId "2105446"]
[BlackFideId "36048763"]
[WhiteElo "2625"]
[BlackElo "2485"]
[Result "1-0"]
[Round "10"]
[TimeControl "180+2"]
[Date "2023.07.04"]
[WhiteClock "0:01:04"]
[BlackClock "0:00:27"]
[Board "42"]

1. d4 {[%clk 0:03:00]}  Nf6 {[%clk 0:02:55]} 2. c4 {[%clk 0:02:59]}  e6 {[%clk 0:02:54]} 3. Nc3 {[%clk 0:02:57]}  d5 {[%clk 0:02:54]} 4. cxd5 {[%clk 0:02:52]}  exd5 {[%clk 0:02:55]} 5. Bg5 {[%clk 0:02:52]}  Bb4 {[%clk 0:02:55]} 6. e3 {[%clk 0:02:52]}  h6 {[%clk 0:02:54]} 7. Bxf6 {[%clk 0:02:52]}  Qxf6 {[%clk 0:02:49]} 8. Bd3 {[%clk 0:02:52]}  c6 {[%clk 0:02:09]} 9. Ne2 {[%clk 0:02:51]}  O-O {[%clk 0:02:09]} 10. O-O {[%clk 0:02:51]}  Nd7 {[%clk 0:02:05]} 11. f3 {[%clk 0:02:45]}  Qe7 {[%clk 0:02:05]} 12. e4 {[%clk 0:02:39]}  dxe4 {[%clk 0:02:01]} 13. fxe4 {[%clk 0:02:39]}  Nf6 {[%clk 0:02:01]} 14. Bc2 {[%clk 0:02:32]}  Ng4 {[%clk 0:01:57]} 15. Qd3 {[%clk 0:02:27]}  Qg5 {[%clk 0:01:52]} 16. Rf3 {[%clk 0:02:09]}  Be6 {[%clk 0:01:25]} 17. h3 {[%clk 0:02:04]}  Nf6 {[%clk 0:01:25]} 18. e5 {[%clk 0:01:59]}  g6 {[%clk 0:00:56]} 19. Rxf6 {[%clk 0:01:51]}  Bf5 {[%clk 0:00:56]} 20. Ne4 {[%clk 0:01:39]}  Qh4 {[%clk 0:00:56]} 21. N2g3 {[%clk 0:01:34]}  Be6 {[%clk 0:00:36]} 22. Nd6 {[%clk 0:01:06]}  Bxd6 {[%clk 0:00:30]} 23. Rxg6+ {[%clk 0:01:05]}  Kh8 {[%clk 0:00:28]} 24. Rg8+ {[%clk 0:01:03]}  Kxg8 {[%clk 0:00:27]} 25. Qh7# {[%clk 0:01:04]} 1-0


[Site "https://www.chess.com"]

[Event "Titled Tuesday Blitz July 4 Late 2023"]
[White "Remolar Gallen, Jose"]
[Black "Ghazarian, Kirk"]
[WhiteFideId "2215187"]
[BlackFideId "30908604"]
[WhiteElo "2480"]
[BlackElo "2731"]
[Result "0-1"]
[Round "10"]
[TimeControl "180+2"]
[Date "2023.07.04"]
[WhiteClock "0:00:00"]
[BlackClock "0:00:53"]
[Board "44"]

1. e4 {[%clk 0:03:00]}  c5 {[%clk 0:02:59]} 2. Nf3 {[%clk 0:03:01]}  Nf6 {[%clk 0:03:00]} 3. e5 {[%clk 0:03:00]}  Nd5 {[%clk 0:02:59]} 4. Nc3 {[%clk 0:02:46]}  e6 {[%clk 0:02:58]} 5. d4 {[%clk 0:02:25]}  Nc6 {[%clk 0:02:51]} 6. Nxd5 {[%clk 0:02:16]}  exd5 {[%clk 0:02:52]} 7. c3 {[%clk 0:02:16]}  d6 {[%clk 0:02:50]} 8. Bb5 {[%clk 0:02:09]}  Bg4 {[%clk 0:02:43]} 9. h3 {[%clk 0:01:45]}  Bxf3 {[%clk 0:02:43]} 10. Qxf3 {[%clk 0:01:46]}  dxe5 {[%clk 0:02:43]} 11. dxe5 {[%clk 0:01:46]}  Be7 {[%clk 0:02:44]} 12. O-O {[%clk 0:01:39]}  O-O {[%clk 0:02:42]} 13. Bf4 {[%clk 0:01:37]}  Qb6 {[%clk 0:02:34]} 14. Bxc6 {[%clk 0:01:34]}  bxc6 {[%clk 0:02:34]} 15. b3 {[%clk 0:01:31]}  a5 {[%clk 0:02:34]} 16. Rab1 {[%clk 0:01:30]}  Rfe8 {[%clk 0:02:29]} 17. Rfe1 {[%clk 0:01:30]}  Bf8 {[%clk 0:02:29]} 18. h4 {[%clk 0:01:28]}  Re6 {[%clk 0:02:27]} 19. h5 {[%clk 0:01:24]}  Rae8 {[%clk 0:02:19]} 20. Rbd1 {[%clk 0:01:11]}  f6 {[%clk 0:02:14]} 21. Qg3 {[%clk 0:01:07]}  Qc7 {[%clk 0:02:12]} 22. Qg4 {[%clk 0:00:26]}  fxe5 {[%clk 0:02:10]} 23. Bg3 {[%clk 0:00:26]}  Qf7 {[%clk 0:02:08]} 24. c4 {[%clk 0:00:20]}  R6e7 {[%clk 0:01:51]} 25. Re2 {[%clk 0:00:12]}  g6 {[%clk 0:01:33]} 26. hxg6 {[%clk 0:00:11]}  hxg6 {[%clk 0:01:33]} 27. Red2 {[%clk 0:00:12]}  d4 {[%clk 0:01:32]} 28. Re1 {[%clk 0:00:12]}  e4 {[%clk 0:01:30]} 29. Rde2 {[%clk 0:00:12]}  Qf5 {[%clk 0:01:29]} 30. Qh4 {[%clk 0:00:12]}  Rh7 {[%clk 0:01:28]} 31. Qf4 {[%clk 0:00:11]}  Qxf4 {[%clk 0:01:21]} 32. Bxf4 {[%clk 0:00:12]}  Rhe7 {[%clk 0:01:21]} 33. g4 {[%clk 0:00:12]}  Re6 {[%clk 0:01:18]} 34. Kg2 {[%clk 0:00:13]}  Kf7 {[%clk 0:01:17]} 35. Kg3 {[%clk 0:00:12]}  Bg7 {[%clk 0:01:15]} 36. Bc7 {[%clk 0:00:12]}  Be5+ {[%clk 0:01:14]} 37. Bxe5 {[%clk 0:00:12]}  Rxe5 {[%clk 0:01:15]} 38. Kf4 {[%clk 0:00:13]}  g5+ {[%clk 0:01:11]} 39. Kg3 {[%clk 0:00:14]}  Kg6 {[%clk 0:01:10]} 40. f4 {[%clk 0:00:13]}  gxf4+ {[%clk 0:01:08]} 41. Kxf4 {[%clk 0:00:14]}  e3 {[%clk 0:01:09]} 42. a3 {[%clk 0:00:07]}  d3 {[%clk 0:00:52]} 43. Rxe3 {[%clk 0:00:00]}  d2 {[%clk 0:00:53]} 0-1


[Site "https://www.chess.com"]

[Event "Titled Tuesday Blitz July 4 Late 2023"]
[White "benny_aizenberg"]
[Black "Ladan, Nicholas"]
[BlackFideId "30918855"]
[WhiteElo "2654"]
[BlackElo "2466"]
[Result "0-1"]
[Round "10"]
[TimeControl "180+2"]
[Date "2023.07.04"]
[WhiteClock "0:00:04"]
[BlackClock "0:00:14"]
[Board "47"]

1. g4 {[%clk 0:03:00]}  d5 {[%clk 0:02:57]} 2. g5 {[%clk 0:03:01]}  e5 {[%clk 0:02:56]} 3. h4 {[%clk 0:02:55]}  h6 {[%clk 0:02:56]} 4. g6 {[%clk 0:02:53]}  fxg6 {[%clk 0:02:55]} 5. d4 {[%clk 0:02:51]}  exd4 {[%clk 0:02:46]} 6. Qxd4 {[%clk 0:02:46]}  Nc6 {[%clk 0:02:42]} 7. Qe3+ {[%clk 0:02:27]}  Be7 {[%clk 0:02:34]} 8. Bh3 {[%clk 0:02:23]}  Nf6 {[%clk 0:02:32]} 9. Nf3 {[%clk 0:02:16]}  O-O {[%clk 0:02:27]} 10. c3 {[%clk 0:01:43]}  Bxh3 {[%clk 0:02:01]} 11. Rxh3 {[%clk 0:01:44]}  Ng4 {[%clk 0:02:01]} 12. Qe6+ {[%clk 0:01:41]}  Kh7 {[%clk 0:01:50]} 13. Qxg4 {[%clk 0:01:42]}  Bc5 {[%clk 0:01:46]} 14. Nbd2 {[%clk 0:01:22]}  Qe7 {[%clk 0:01:42]} 15. Nb3 {[%clk 0:01:20]}  Rae8 {[%clk 0:01:37]} 16. e3 {[%clk 0:01:12]}  Bd6 {[%clk 0:00:46]} 17. Bd2 {[%clk 0:01:09]}  Rf4 {[%clk 0:00:46]} 18. Qg2 {[%clk 0:01:05]}  Ra4 {[%clk 0:00:43]} 19. a3 {[%clk 0:00:44]}  Qe4 {[%clk 0:00:41]} 20. Rc1 {[%clk 0:00:20]}  Ne5 {[%clk 0:00:34]} 21. Ke2 {[%clk 0:00:18]}  Qc4+ {[%clk 0:00:32]} 22. Ke1 {[%clk 0:00:14]}  Qxb3 {[%clk 0:00:32]} 23. Nxe5 {[%clk 0:00:13]}  Rxe5 {[%clk 0:00:30]} 24. Rg3 {[%clk 0:00:10]}  Re6 {[%clk 0:00:27]} 25. Rg4 {[%clk 0:00:08]}  Rxg4 {[%clk 0:00:24]} 26. Qxg4 {[%clk 0:00:09]}  Re4 {[%clk 0:00:25]} 27. Qf3 {[%clk 0:00:07]}  Rxh4 {[%clk 0:00:23]} 28. c4 {[%clk 0:00:07]}  Rxc4 {[%clk 0:00:22]} 29. Bc3 {[%clk 0:00:07]}  Be5 {[%clk 0:00:16]} 30. Qxd5 {[%clk 0:00:03]}  Rxc3 {[%clk 0:00:12]} 31. Qd2 {[%clk 0:00:02]}  Rxc1+ {[%clk 0:00:11]} 32. Qxc1 {[%clk 0:00:03]}  Bxb2 {[%clk 0:00:12]} 33. Qxc7 {[%clk 0:00:03]}  Qc3+ {[%clk 0:00:11]} 34. Qxc3 {[%clk 0:00:02]}  Bxc3+ {[%clk 0:00:12]} 35. Ke2 {[%clk 0:00:03]}  h5 {[%clk 0:00:12]} 36. Kd3 {[%clk 0:00:03]}  h4 {[%clk 0:00:12]} 37. Kxc3 {[%clk 0:00:03]}  h3 {[%clk 0:00:13]} 38. e4 {[%clk 0:00:03]}  h2 {[%clk 0:00:13]} 39. Kd4 {[%clk 0:00:04]}  h1=Q {[%clk 0:00:13]} 40. f4 {[%clk 0:00:04]}  Kg8 {[%clk 0:00:12]} 41. Ke5 {[%clk 0:00:04]}  Kf7 {[%clk 0:00:13]} 42. a4 {[%clk 0:00:05]}  Qc1 {[%clk 0:00:13]} 43. Kd6 {[%clk 0:00:04]}  Qc6+ {[%clk 0:00:13]} 44. Ke5 {[%clk 0:00:04]}  Qc5# {[%clk 0:00:14]} 0-1


[Site "https://www.chess.com"]

[Event "Titled Tuesday Blitz July 4 Late 2023"]
[White "Karas, Marek"]
[Black "Domingo Nunez, Ruben"]
[WhiteFideId "14928558"]
[BlackFideId "22245570"]
[WhiteElo "2463"]
[BlackElo "2620"]
[Result "0-1"]
[Round "10"]
[TimeControl "180+2"]
[Date "2023.07.04"]
[WhiteClock "0:00:00"]
[BlackClock "0:01:09"]
[Board "48"]

1. d4 {[%clk 0:03:00]}  g6 {[%clk 0:03:00]} 2. h4 {[%clk 0:02:59]}  Nf6 {[%clk 0:02:59]} 3. Nc3 {[%clk 0:02:57]}  d6 {[%clk 0:02:51]} 4. e4 {[%clk 0:02:55]}  h6 {[%clk 0:02:51]} 5. f3 {[%clk 0:02:49]}  Bg7 {[%clk 0:02:52]} 6. Be3 {[%clk 0:02:44]}  a6 {[%clk 0:02:52]} 7. Qd2 {[%clk 0:02:31]}  b5 {[%clk 0:02:52]} 8. Nge2 {[%clk 0:02:29]}  Nbd7 {[%clk 0:02:51]} 9. a3 {[%clk 0:02:21]}  Nb6 {[%clk 0:02:51]} 10. Nc1 {[%clk 0:01:49]}  c6 {[%clk 0:02:29]} 11. Nb3 {[%clk 0:01:40]}  Nc4 {[%clk 0:02:26]} 12. Bxc4 {[%clk 0:01:39]}  bxc4 {[%clk 0:02:27]} 13. Nc1 {[%clk 0:01:33]}  Rb8 {[%clk 0:02:28]} 14. Rb1 {[%clk 0:01:27]}  d5 {[%clk 0:02:19]} 15. e5 {[%clk 0:01:14]}  Nd7 {[%clk 0:02:19]} 16. h5 {[%clk 0:00:43]}  g5 {[%clk 0:02:18]} 17. N1e2 {[%clk 0:00:30]}  Nf8 {[%clk 0:02:07]} 18. g4 {[%clk 0:00:24]}  f5 {[%clk 0:02:02]} 19. gxf5 {[%clk 0:00:18]}  Bxf5 {[%clk 0:02:03]} 20. Ng3 {[%clk 0:00:18]}  Bh7 {[%clk 0:01:58]} 21. f4 {[%clk 0:00:19]}  gxf4 {[%clk 0:01:40]} 22. Bxf4 {[%clk 0:00:20]}  Qd7 {[%clk 0:01:28]} 23. Qg2 {[%clk 0:00:19]}  Qg4 {[%clk 0:01:26]} 24. Rf1 {[%clk 0:00:14]}  Ne6 {[%clk 0:01:26]} 25. Be3 {[%clk 0:00:12]}  Nxd4 {[%clk 0:01:19]} 26. Bxd4 {[%clk 0:00:09]}  Qxd4 {[%clk 0:01:19]} 27. Nf5 {[%clk 0:00:02]}  Qxe5+ {[%clk 0:01:18]} 28. Kd2 {[%clk 0:00:01]}  Bxf5 {[%clk 0:01:12]} 29. Rbe1 {[%clk 0:00:01]}  Qd4+ {[%clk 0:01:13]} 30. Kc1 {[%clk 0:00:00]}  Rxb2 {[%clk 0:01:09]} 0-1


[Site "https://www.chess.com"]